bitfinex/quotes_SOLUSD_20250805
["timestamp","ask_amount","ask_price","bid_price","bid_amount"]
[1754380164643,15.10621557,166.71,166.7,16.78860105]
[1754380164842,15.10621557,166.71,166.7,10.78991285]
[1754380165634,15.76621557,166.71,166.7,10.78991285]
[1754380165944,15.10621557,166.71,166.69,16.78885581]
[1754380166658,15.76621557,166.71,166.69,10.78991285]
[1754380166853,15.76621557,166.71,166.69,16.78897541]
[1754380167044,59.20621557,166.7,166.69,16.78897541]
[1754380167455,59.20621557,166.7,166.69,10.78991285]
[1754380168161,59.20621557,166.7,166.69,16.78907296]
[1754380168551,15.10621557,166.69,166.67,5.99988]
[1754380168752,15.10621557,166.69,166.68,10.78991285]
[1754380169459,8.51414427,166.72,166.67,10.78991285]
[1754380169671,67.72035984,166.72,166.71,10.78991285]
[1754380170359,67.72035984,166.72,166.71,11.46991285]
[1754380170734,23.62035984,166.72,166.71,10.78991285]
[1754380171659,23.62035984,166.72,166.71,17.46835325]
[1754380171865,23.62035984,166.72,166.71,16.78835325]
[1754380172241,23.62035984,166.72,166.71,104.28835325]
[1754380172443,8.51414427,166.72,166.71,104.28835325]
[1754380172747,8.51414427,166.72,166.71,104.96835325]
[1754380173363,8.51414427,166.72,166.71,104.28835325]
[1754380174275,8.51414427,166.72,166.71,104.96835325]
[1754380175547,15.10621557,166.75,166.71,104.96835325]
[1754380175750,15.10621557,166.75,166.74,10.78991285]
[1754380176164,15.10621557,166.75,166.74,16.78727401]
[1754380176960,59.18621557,166.78,166.74,104.96727401]
[1754380177160,59.18621557,166.78,166.77,10.78991285]
[1754380177877,44.08,166.78,166.77,10.78991285]
[1754380178280,44.08,166.78,166.77,16.78619515]
[1754380178955,15.13621557,166.79,166.77,16.78619515]
[1754380179156,15.13621557,166.79,166.78,10.78991285]
[1754380179370,15.13621557,166.79,166.76,5.99664188]
[1754380179371,15.84621557,166.79,166.76,5.99664188]
[1754380179575,15.84621557,166.79,166.78,10.78991285]
[1754380180156,15.13621557,166.79,166.78,10.78991285]
[1754380180688,15.13621557,166.79,166.78,11.46991285]
[1754380181358,0.03,166.79,166.78,17.46583562]
[1754380181559,0.03,166.79,166.78,104.96583562]
[1754380183089,0.03,166.79,166.78,149.00583562]
[1754380183984,1e-08,166.79,166.78,149.00583562]
[1754380186194,15.20621557,166.87,166.81,26.0]
[1754380186405,15.20621557,166.87,166.86,10.78991285]
[1754380187293,15.91621557,166.87,166.86,10.78991285]
[1754380187516,15.91621557,166.87,166.86,16.78296091]
[1754380188280,15.20621557,166.87,166.86,16.78296091]
[1754380188781,0.1,166.87,166.86,16.78296091]
[1754380189786,0.1,166.87,166.86,17.46296091]
[1754380189990,0.1,166.87,166.86,5.99304806]
[1754380190207,0.81,166.87,166.85,10.78991285]
[1754380190407,0.71,166.86,166.85,10.78991285]
[1754380190812,0.1,166.87,166.85,11.46991285]
[1754380191009,0.1,166.87,166.86,10.78991285]
[1754380191516,0.1,166.87,166.86,16.78296091]
[1754380195315,0.81,166.87,166.86,16.78296091]
[1754380196411,0.81,166.87,166.82,44.68]
[1754380196412,15.10621557,166.86,166.82,44.68]
[1754380196722,0.1,166.87,166.85,10.78991285]
[1754380197039,15.10621557,166.86,166.85,10.78991285]
[1754380197251,15.81621557,166.86,166.83,16.7840386]
[1754380197406,15.10621557,166.84,166.83,16.7840386]
[1754380197607,15.81621557,166.84,166.83,16.7840386]
[1754380198007,15.81621557,166.84,166.83,5.99412575]
[1754380198200,15.81621557,166.84,166.83,16.7840386]
[1754380198400,15.81621557,166.84,166.83,10.78991285]
[1754380199533,15.81621557,166.84,166.82,93.49440129]
[1754380199750,15.81621557,166.84,166.83,10.78991285]
[1754380200336,15.81621557,166.84,166.81,10.78991285]
[1754380200630,15.10621557,166.82,166.81,16.78469446]
[1754380200808,15.10621557,166.82,166.81,104.28469446]
[1754380202137,0.66,166.82,166.81,93.49478161]
[1754380202306,15.10621557,166.86,166.81,105.00469446]
[1754380202631,59.06621557,166.86,166.85,16.7833201]
[1754380202838,59.06621557,166.86,166.85,5.99340725]
[1754380203144,59.06621557,166.86,166.85,16.7833201]
[1754380203834,0.1,166.87,166.85,17.5033201]
[1754380204041,0.1,166.87,166.86,11.50991285]
[1754380204221,0.1,166.87,166.86,10.78991285]
[1754380204612,0.1,166.87,166.86,16.78296091]
[1754380205320,0.76,166.87,166.86,16.78296091]
[1754380206419,0.1,166.87,166.86,16.78296091]
[1754380207119,0.76,166.87,166.86,16.78296091]
[1754380208031,0.1,166.87,166.86,16.78296091]
[1754380208514,0.1,166.87,166.86,17.50296091]
[1754380208706,0.1,166.87,166.86,5.99304806]
[1754380209013,15.10621557,166.86,166.81,10.78991285]
[1754380209211,15.10621557,166.84,166.81,10.78991285]
[1754380209428,15.76621557,166.84,166.81,10.78991285]
[1754380209807,15.76621557,166.84,166.82,10.78991285]
[1754380210022,15.76621557,166.84,166.8,5.99520383]
[1754380210222,0.66,166.83,166.81,10.78991285]
[1754380210457,0.66,166.83,166.82,10.78991285]
[1754380210649,0.66,166.83,166.81,10.78991285]
[1754380210849,0.66,166.82,166.8,16.78511668]
[1754380211462,15.10621557,166.84,166.8,5.99520383]
[1754380211656,15.10621557,166.82,166.8,16.78511668]
[1754380211962,15.10621557,166.82,166.8,10.78991285]
[1754380213973,15.10621557,166.82,166.81,5.99484443]
[1754380214182,15.76621557,166.82,166.81,5.99484443]
[1754380214380,15.76621557,166.82,166.8,98.28991285]
[1754380214381,15.76621557,166.82,166.8,93.49508301]
[1754380214581,15.10621557,166.8,166.79,0.06]
[1754380214879,25.89612842,166.8,166.79,0.06]
[1754380215246,26.69828999,166.8,166.79,0.06]
[1754380215674,15.90837714,166.8,166.79,0.06]
[1754380215859,59.00621557,166.8,166.79,16.84547613]
[1754380216276,10.78991285,166.84,166.79,17.56547613]
[1754380216277,15.10621557,166.84,166.79,17.56547613]
[1754380216479,59.00621557,166.84,166.82,10.78991285]
[1754380216986,59.66621557,166.84,166.81,10.78991285]
[1754380217184,0.66,166.83,166.81,10.78991285]
[1754380218061,15.10621557,166.84,166.82,16.78439792]
[1754380218286,15.10621557,166.84,166.83,10.78991285]
[1754380218488,15.10621557,166.84,166.82,5.99448507]
[1754380218668,15.10621557,166.84,166.83,10.78991285]
[1754380219896,15.10621557,166.84,166.83,16.7840386]
[1754380220270,0.76,166.87,166.83,17.5040386]
[1754380220271,0.1,166.87,166.83,17.5040386]
[1754380220466,0.1,166.87,166.86,10.78991285]
[1754380221590,0.1,166.87,166.86,11.50991285]
[1754380221768,0.1,166.87,166.86,16.78296091]
[1754380222172,0.1,166.87,166.86,17.50296091]
[1754380222367,0.1,166.87,166.86,16.78296091]
[1754380223007,15.86621557,166.87,166.86,16.78296091]
[1754380223703,15.20621557,166.87,166.86,16.78296091]
[1754380224109,15.20621557,166.87,166.86,17.50296091]
[1754380224799,15.20621557,166.87,166.86,16.78296091]
[1754380225002,0.1,166.87,166.86,17.50296091]
[1754380225204,0.1,166.87,166.86,16.78296091]
[1754380225782,0.76,166.87,166.86,16.78296091]
[1754380226111,0.76,166.87,166.85,16.78320382]
[1754380226277,15.76621557,166.86,166.85,16.78320382]
[1754380226789,15.10621557,166.85,166.83,10.78991285]
[1754380226992,0.66,166.84,166.83,16.78379981]
[1754380227193,0.66,166.84,166.82,16.78427759]
[1754380227781,15.10621557,166.86,166.82,16.78427759]
[1754380228006,0.66,166.85,166.82,16.78427759]
[1754380228824,15.10621557,166.86,166.83,10.78991285]
[1754380228993,15.10621557,166.86,166.84,10.78991285]
[1754380229823,0.71,166.85,166.83,10.78991285]
[1754380230496,15.10621557,166.83,166.79,0.06]
[1754380230697,25.89612842,166.83,166.79,0.06]
[1754380230895,15.10621557,166.81,166.79,0.06]
[1754380231117,58.96621557,166.81,166.79,0.06]
[1754380231591,15.81621557,166.8,166.79,0.06]
[1754380231784,26.74828999,166.8,166.79,0.06]
[1754380231980,26.74828999,166.8,166.7,0.68]
[1754380231981,15.24837714,166.79,166.7,0.68]
[1754380232307,15.10621557,166.75,166.72,5.99808061]
[1754380232480,58.94621557,166.75,166.72,5.99808061]
[1754380232680,59.65621557,166.75,166.72,5.99808061]
[1754380233114,0.71,166.78,166.74,17.28198991]
[1754380233286,58.94621557,166.77,166.74,17.28198991]
[1754380233488,58.94621557,166.77,166.73,0.68]
[1754380234020,58.94621557,166.77,166.72,20.99328214]
[1754380234325,58.94621557,166.77,166.74,0.68]
[1754380234693,58.94621557,166.77,166.73,17.28198991]
[1754380234903,58.94621557,166.77,166.74,23.27935107]
[1754380235093,58.94621557,166.77,166.74,23.95935107]
[1754380235288,43.84,166.77,166.75,17.28198991]
[1754380235516,43.84,166.77,166.74,5.99736116]
[1754380235722,43.84,166.77,166.74,6.67736116]
[1754380236222,0.71,166.81,166.76,17.28198991]
[1754380236398,58.94621557,166.8,166.77,17.28198991]
[1754380236712,58.94621557,166.8,166.78,17.28198991]
[1754380237101,15.10621557,166.82,166.79,23.27755319]
[1754380237306,15.10621557,166.8,166.79,23.27755319]
[1754380237628,43.84,166.81,166.79,23.27755319]
[1754380237926,15.10621557,166.82,166.8,17.28198991]
[1754380238818,15.10621557,166.82,166.8,23.27691739]
[1754380239720,15.10621557,166.82,166.76,14.99131523]
[1754380240027,15.81621557,166.82,166.8,17.28198991]
[1754380240202,0.03,166.83,166.81,17.28198991]
[1754380240407,15.13621557,166.83,166.82,17.28198991]
[1754380240605,58.97621557,166.83,166.81,17.28198991]
[1754380240807,59.68621557,166.83,166.81,17.28198991]
[1754380241118,58.97621557,166.83,166.81,17.28198991]
[1754380241922,59.68621557,166.83,166.81,23.27659249]
[1754380243338,58.97621557,166.83,166.81,5.99460258]
[1754380243509,58.97621557,166.83,166.81,23.27659249]
[1754380243831,58.97621557,166.83,166.82,17.28198991]
[1754380244436,0.03,166.83,166.82,17.28198991]
[1754380244620,0.03,166.83,166.82,17.96198991]
[1754380245001,0.03,166.83,166.82,17.28198991]
[1754380245539,0.03,166.83,166.8,109.16321342]
[1754380245933,0.03,166.83,166.82,17.28198991]
[1754380246435,0.03,166.83,166.82,23.27647498]
[1754380248810,0.03,166.83,166.81,5.99484443]
[1754380249139,0.03,166.83,166.82,17.28198991]
[1754380249428,0.03,166.83,166.82,17.96198991]
[1754380249930,0.03,166.83,166.82,17.28198991]
[1754380250647,0.03,166.83,166.82,17.96198991]
[1754380250942,0.03,166.83,166.82,111.45647498]
[1754380251147,1e-08,166.83,166.82,137.45647498]
[1754380252629,1e-08,166.83,166.82,119.49448507]
[1754380253033,1e-08,166.83,166.82,136.77647498]
[1754380253713,1e-08,166.83,166.82,110.77647498]
[1754380254029,15.81621558,166.83,166.82,93.49448507]
[1754380254547,1e-08,166.83,166.82,110.77647498]
[1754380255039,1e-08,166.83,166.82,87.5]
[1754380255230,0.71000001,166.83,166.82,87.5]
[1754380255713,0.71000001,166.83,166.82,93.49448507]
[1754380255915,0.71000001,166.83,166.82,87.5]
[1754380258049,0.71000001,166.83,166.81,5.99472933]
[1754380260042,0.71000001,166.83,166.81,23.27671924]
[1754380260360,1e-08,166.83,166.81,23.27671924]
[1754380260748,1e-08,166.83,166.82,11.47820184]
[1754380261158,1e-08,166.83,166.81,5.99472933]
[1754380261355,1e-08,166.83,166.81,93.49472933]
[1754380261553,1e-08,166.83,166.82,10.78820184]
[1754380261762,1e-08,166.83,166.82,5.99448507]
[1754380262100,1e-08,166.83,166.82,16.78268691]
[1754380262745,1e-08,166.83,166.82,23.25107322]
[1754380263292,1e-08,166.83,166.82,110.75107322]
[1754380265898,1e-08,166.83,166.82,23.25107322]
[1754380266058,1e-08,166.83,166.82,49.94107322]
[1754380267563,1e-08,166.83,166.82,49.25107322]
[1754380267778,1e-08,166.83,166.82,23.25107322]
[1754380268996,1e-08,166.83,166.82,23.94107322]
[1754380270668,1e-08,166.83,166.82,26.34109722]
[1754380270869,0.03,166.85,166.82,26.34109722]
[1754380270870,1e-08,166.85,166.84,26.0]
[1754380271186,1e-08,166.85,166.84,174.47658815]
[1754380271480,1e-08,166.85,166.84,181.16035463]
[1754380272878,1e-08,166.85,166.84,183.56023463]
[1754380276382,1e-08,166.85,166.84,181.16035463]
[1754380279686,1e-08,166.87,166.84,196.14477083]
[1754380279885,1e-08,166.87,166.86,17.25658815]
[1754380280089,1e-08,166.87,166.86,60.93658815]
[1754380280389,1e-08,166.87,166.86,67.61963621]
[1754380280988,1e-08,166.87,166.86,66.92963621]
[1754380281392,1e-08,166.87,166.86,69.32908421]
[1754380281586,0.68000001,166.87,166.86,8.39249606]
[1754380281810,0.68000001,166.87,166.86,23.24963621]
[1754380282298,0.68000001,166.87,166.86,5.99304806]
[1754380282489,0.68000001,166.87,166.85,17.25658815]
[1754380282702,0.68,166.86,166.85,17.25658815]
[1754380283301,1e-08,166.87,166.85,17.25658815]
[1754380283617,0.68000001,166.87,166.86,17.25658815]
[1754380284027,0.68000001,166.87,166.86,23.24963621]
[1754380284916,0.68000001,166.87,166.86,12.46194528]
[1754380286225,0.68000001,166.87,166.86,5.62424324]
[1754380286802,0.68000001,166.87,166.85,5.99340725]
[1754380287002,0.68000001,166.87,166.86,6.46889722]
[1754380287741,1e-08,166.87,166.86,6.46889722]
[1754380288107,1e-08,166.87,166.86,99.96194528]
[1754380288813,1e-08,166.87,166.86,143.60194528]
[1754380289216,0.68000001,166.87,166.86,143.60194528]
[1754380289406,0.68000001,166.87,166.86,99.96194528]
[1754380290340,0.68000001,166.87,166.86,93.49304806]
[1754380290516,0.68000001,166.87,166.86,99.96194528]
[1754380291126,1e-08,166.87,166.86,99.96194528]
[1754380292125,0.68000001,166.87,166.86,93.49304806]
[1754380292329,1e-08,166.87,166.86,99.96194528]
[1754380292839,0.68000001,166.87,166.86,99.96194528]
[1754380294545,1e-08,166.87,166.86,99.96194528]
[1754380295029,1e-08,166.87,166.86,93.49304806]
[1754380295354,1e-08,166.87,166.86,99.96194528]
[1754380299351,1e-08,166.87,166.86,93.49304806]
[1754380299660,1e-08,166.87,166.86,99.96194528]
[1754380303838,0.68000001,166.87,166.86,99.96194528]
[1754380305445,0.68000001,166.87,166.86,87.5]
[1754380306075,15.78621558,166.87,166.86,87.5]
[1754380306444,15.78621558,166.87,166.84,0.06]
[1754380306445,26.38542825,166.87,166.84,0.06]
[1754380306777,15.10621557,166.85,166.84,0.06]
[1754380307163,0.68000001,166.87,166.84,12.5226637]
[1754380307466,0.68000001,166.87,166.84,6.05376648]
[1754380307672,0.68000001,166.87,166.85,6.46889722]
[1754380308174,15.10621557,166.86,166.84,6.52889722]
[1754380308468,0.68,166.85,166.84,12.52254755]
[1754380308765,15.78621557,166.85,166.84,0.06]
[1754380308972,15.78621557,166.85,166.84,6.52889722]
[1754380309344,15.78621557,166.85,166.84,0.06]
[1754380309546,15.10621557,166.85,166.84,0.06]
[1754380309746,15.78621557,166.85,166.84,0.06]
[1754380313481,28.39068161,166.85,166.84,0.06]
[1754380315093,22.39727436,166.85,166.84,0.06]
[1754380316279,32.37602434,166.85,166.84,0.06]
[1754380316576,38.84492234,166.85,166.84,0.06]
[1754380316978,38.84492234,166.85,166.84,1e-08]
[1754380318287,38.83953074,166.85,166.84,1e-08]
[1754380320387,41.10621557,166.83,166.82,0.06]
[1754380320599,15.24837714,166.82,166.81,0.06]
[1754380320812,37.27135049,166.82,166.81,1e-08]
[1754380322895,15.10621557,166.77,166.71,0.06]
[1754380323204,21.71727436,166.72,166.71,0.06]
[1754380323423,65.25727436,166.72,166.71,0.06]
[1754380324004,65.97727436,166.72,166.71,0.06]
[1754380324703,97.97535497,166.72,166.71,0.06]
[1754380326393,53.71535497,166.72,166.71,0.06]
[1754380326595,97.97535497,166.72,166.71,0.06]
[1754380326913,100.37869597,166.72,166.71,0.06]
[1754380328309,10.14216157,166.71,166.67,0.2]
[1754380328515,53.71679439,166.68,166.67,0.2]
[1754380328821,97.25679439,166.68,166.67,0.2]
[1754380329027,97.97679439,166.68,166.67,0.2]
[1754380332305,0.14216157,166.67,166.65,0.2]
[1754380332511,0.14216157,166.59,166.54,6.92446062]
[1754380332805,15.10621557,166.57,166.55,0.72]
[1754380333028,0.14216157,166.59,166.54,6.20446062]
[1754380333029,32.46889722,166.6,166.54,6.20446062]
[1754380333196,58.64621557,166.59,166.54,6.20446062]
[1754380333521,58.64621557,166.59,166.56,6.46889722]
[1754380333726,58.64621557,166.59,166.57,0.72]
[1754380333896,58.64621557,166.59,166.55,0.72]
[1754380333897,15.10621557,166.57,166.55,0.72]
[1754380334096,58.62621557,166.57,166.56,0.72]
[1754380335928,58.62621557,166.57,166.56,6.72384245]
[1754380336309,58.62621557,166.57,166.56,0.72]
[1754380337534,58.62621557,166.57,166.55,6.00411233]
[1754380337734,65.09511279,166.57,166.54,6.20447864]
[1754380337946,65.09511279,166.57,166.54,6.92447864]
[1754380338241,6.46889722,166.55,166.54,0.2]
[1754380338437,65.11511279,166.55,166.54,0.2]
[1754380339908,58.64621557,166.55,166.54,0.2]
[1754380340129,65.11511279,166.55,166.54,0.2]
[1754380340523,91.11511279,166.55,166.54,0.2]
[1754380344226,15.10621557,166.55,166.54,7.38889722]
[1754380344440,15.10621557,166.55,166.54,13.39346068]
[1754380344606,58.62621557,166.55,166.54,13.39346068]
[1754380345114,58.62621557,166.55,166.54,7.38889722]
[1754380345329,58.62621557,166.55,166.54,0.2]
[1754380346539,58.62621557,166.55,166.54,6.92456346]
[1754380347219,58.62621557,166.55,166.54,0.2]
[1754380347941,13.25406922,166.6,166.54,13.39329128]
[1754380348238,58.62621557,166.59,166.56,6.46889722]
[1754380348437,58.62621557,166.59,166.56,6.72374217]
[1754380348641,58.62621557,166.59,166.56,13.19263939]
[1754380348848,58.62621557,166.59,166.57,7.12889722]
[1754380349019,58.62621557,166.59,166.58,0.66]
[1754380349216,58.62621557,166.59,166.56,6.66374217]
[1754380349435,58.62621557,166.59,166.56,13.13263939]
[1754380349619,58.62621557,166.59,166.56,6.66374217]
[1754380349822,58.62621557,166.59,166.56,13.13263939]
[1754380350023,58.62621557,166.59,166.57,0.66]
[1754380350222,58.62621557,166.59,166.57,7.12889722]
[1754380350414,58.62621557,166.59,166.57,6.66337388]
[1754380350618,58.62621557,166.59,166.58,7.12889722]
[1754380351021,43.5,166.6,166.58,7.12889722]
[1754380351221,15.10621557,166.6,166.59,6.46889722]
[1754380351433,15.27837714,166.64,166.59,0.66]
[1754380351636,15.27837714,166.64,166.6,6.46889722]
[1754380351637,15.10621557,166.62,166.6,6.46889722]
[1754380351815,43.5,166.61,166.6,7.12889722]
[1754380352029,58.60621557,166.61,166.6,7.12889722]
[1754380352428,58.60621557,166.61,166.6,13.13129818]
[1754380352631,15.10621557,166.61,166.6,13.13129818]
[1754380353048,43.5,166.62,166.6,13.13129818]
[1754380353351,58.60621557,166.62,166.61,6.46889722]
[1754380353651,15.10621557,166.62,166.61,7.12889722]
[1754380354028,15.10621557,166.62,166.61,13.13093791]
[1754380354467,0.03,166.64,166.61,13.13093791]
[1754380354751,0.03,166.64,166.63,6.46889722]
[1754380354752,58.63621557,166.64,166.63,6.46889722]
[1754380355135,0.03,166.64,166.63,7.12889722]
[1754380356134,0.03,166.64,166.63,13.13021751]
[1754380361064,0.03,166.64,166.62,12.47044624]
[1754380361571,0.03,166.64,166.63,7.12889722]
[1754380361979,0.03,166.64,166.63,94.62889722]
[1754380362144,0.03,166.64,166.63,100.63021751]
[1754380363150,0.03,166.64,166.63,99.97021751]
[1754380363947,0.03,166.64,166.63,100.63021751]
[1754380365260,0.03,166.66,166.65,6.46889722]
[1754380365650,0.03,166.66,166.65,7.12889722]
[1754380366267,0.03,166.66,166.65,13.12949728]
[1754380368170,0.03,166.66,166.65,12.46949728]
[1754380370479,0.03,166.66,166.65,99.96949728]
[1754380370973,0.03,166.66,166.65,100.62949728]
[1754380374975,0.03,166.66,166.65,99.96949728]
[1754380376887,0.03,166.66,166.65,12.46949728]
[1754380379586,0.71,166.66,166.65,6.00060006]
[1754380379888,0.71,166.66,166.64,93.50084109]
[1754380380185,0.71,166.66,166.64,99.96973831]
[1754380380388,0.03,166.66,166.65,6.46889722]
[1754380381881,0.03,166.66,166.65,99.96949728]
[1754380382083,6.46889722,166.75,166.65,28.16099743]
[1754380382287,0.68,166.72,166.71,6.46889722]
[1754380382485,0.68,166.72,166.66,43.38]
[1754380382670,0.68,166.72,166.69,6.46889722]
[1754380383179,15.10621557,166.71,166.69,6.46889722]
[1754380383388,15.78621557,166.71,166.7,6.46889722]
[1754380383587,15.78621557,166.71,166.69,6.46889722]
[1754380384511,0.68,166.7,166.69,6.46889722]
[1754380385184,15.10621557,166.69,166.64,12.52974362]
[1754380385376,0.68,166.68,166.64,6.0608464]
[1754380385576,0.68,166.68,166.64,12.52974362]
[1754380386210,15.10621557,166.67,166.64,6.0608464]
[1754380386414,0.68,166.68,166.66,6.46889722]
[1754380386582,0.68,166.68,166.67,6.46889722]
[1754380387212,7.14889722,166.68,166.64,0.06]
[1754380387378,7.14889722,166.67,166.64,0.06]
[1754380387796,0.68,166.66,166.64,0.06]
[1754380388511,0.68,166.65,166.64,0.06]
[1754380388815,0.68,166.66,166.64,6.52889722]
[1754380389182,0.68,166.68,166.65,6.46889722]
[1754380389406,0.68,166.67,166.64,0.06]
[1754380389617,15.10621557,166.66,166.64,0.06]
[1754380389914,7.14889722,166.65,166.64,0.06]
[1754380390404,15.10621557,166.64,166.59,87.5]
[1754380390616,6.46889722,166.62,166.59,6.00267129]
[1754380390920,15.10621557,166.62,166.59,6.00267129]
[1754380391106,15.10621557,166.62,166.59,12.47156851]
[1754380391304,15.10621557,166.62,166.59,6.00267129]
[1754380391515,0.68,166.61,166.59,6.00267129]
[1754380392505,15.10621557,166.62,166.59,6.00267129]
[1754380392689,15.10621557,166.62,166.58,12.53190116]
[1754380392690,0.68,166.6,166.58,12.53190116]
[1754380392901,0.68,166.6,166.58,6.06300394]
[1754380393204,0.68,166.6,166.58,0.06]
[1754380393415,15.10621557,166.59,166.58,0.06]
[1754380393783,15.78621557,166.59,166.58,0.06]
[1754380394013,22.25511279,166.59,166.58,0.06]
[1754380395385,15.78621557,166.59,166.58,0.06]
[1754380396005,22.25511279,166.59,166.58,0.06]
[1754380396205,28.25787406,166.59,166.58,0.06]
[1754380396515,28.40003563,166.59,166.58,0.06]
[1754380401023,54.40003563,166.59,166.58,0.06]
[1754380401208,28.40003563,166.59,166.58,0.06]
[1754380402116,21.71727436,166.55,166.54,0.2]
[1754380402315,65.05727436,166.55,166.54,0.2]
[1754380402530,65.73727436,166.55,166.54,0.2]
[1754380402943,97.7414773,166.55,166.54,0.2]
[1754380404415,91.27258008,166.55,166.54,0.2]
[1754380404723,97.7414773,166.55,166.54,0.2]
[1754380408543,71.7414773,166.55,166.54,0.2]
[1754380411159,27.7214773,166.55,166.54,0.2]
[1754380411348,71.7414773,166.55,166.54,0.2]
[1754380411746,65.27258008,166.55,166.54,0.2]
[1754380411948,71.7414773,166.55,166.54,0.2]
[1754380412459,71.7414773,166.55,166.52,0.06]
[1754380412460,41.24837714,166.53,166.52,0.06]
[1754380412753,91.05727436,166.53,166.52,0.06]
[1754380413064,91.73727436,166.53,166.52,0.06]
[1754380413236,91.73727436,166.53,166.49,0.2]
[1754380413237,41.10621557,166.5,166.49,0.2]
[1754380413436,97.52617158,166.5,166.49,0.2]
[1754380413655,15.24837714,166.49,166.41,0.1]
[1754380413844,65.05727436,166.48,166.41,0.1]
[1754380414046,65.73727436,166.48,166.41,0.1]
[1754380414448,15.10621557,166.44,166.41,0.1]
[1754380414753,21.71727436,166.42,166.41,0.1]
[1754380414949,65.03727436,166.42,166.41,0.81]
[1754380415438,58.42621557,166.42,166.41,0.81]
[1754380416132,65.03727436,166.42,166.41,0.1]
[1754380416784,71.04616752,166.42,166.41,0.1]
[1754380416955,71.72616752,166.42,166.41,0.1]
[1754380417261,65.03727436,166.42,166.41,0.1]
[1754380417441,71.04616752,166.42,166.41,0.1]
[1754380417835,58.56837714,166.42,166.41,0.1]
[1754380418035,65.03727436,166.42,166.41,0.1]
[1754380418234,58.42621557,166.42,166.41,0.1]
[1754380418461,58.42621557,166.42,166.41,0.81]
[1754380419044,64.89511279,166.42,166.41,0.1]
[1754380420133,91.03727436,166.42,166.41,0.1]
[1754380420337,97.72616752,166.42,166.41,0.1]
[1754380420564,91.03727436,166.42,166.41,0.1]
[1754380421144,97.04616752,166.42,166.41,0.1]
[1754380421342,97.72616752,166.42,166.41,0.1]
[1754380421644,97.04616752,166.42,166.41,0.1]
[1754380422162,91.03727436,166.42,166.41,0.1]
[1754380422341,97.04616752,166.42,166.41,0.1]
[1754380423771,58.44621557,166.42,166.41,7.27889722]
[1754380423946,58.44621557,166.42,166.41,0.81]
[1754380424768,71.74616752,166.42,166.41,0.1]
[1754380428851,15.10621557,166.4,166.39,0.06]
[1754380429090,15.24837714,166.38,166.37,0.1]
[1754380429254,65.03727436,166.38,166.37,1e-08]
[1754380429450,41.24837714,166.36,166.35,0.06]
[1754380429761,71.04833471,166.36,166.35,0.06]
[1754380429963,71.72833471,166.36,166.35,0.06]
[1754380430968,65.25943749,166.36,166.35,0.06]
[1754380431278,71.72833471,166.36,166.35,0.06]
[1754380434266,71.04833471,166.36,166.35,0.06]
[1754380434766,70.90617314,166.36,166.35,0.06]
[1754380435079,71.04833471,166.36,166.35,0.06]
[1754380435276,70.90617314,166.36,166.35,0.06]
[1754380435479,65.03727436,166.36,166.35,0.06]
[1754380436084,71.04833471,166.36,166.35,0.06]
[1754380436278,71.72833471,166.36,166.35,0.06]
[1754380438869,15.24837714,166.35,166.34,0.06]
[1754380439184,22.39727436,166.35,166.34,0.06]
[1754380439588,28.40869606,166.35,166.34,0.06]
[1754380440488,27.72869606,166.35,166.34,0.06]
[1754380440992,28.40869606,166.35,166.34,0.06]
[1754380443209,27.58653449,166.35,166.34,0.06]
[1754380443507,0.14216157,166.34,166.33,0.06]
[1754380443823,71.72905745,166.34,166.33,0.06]
[1754380445695,79.79745948,166.34,166.33,0.06]
[1754380451788,79.11745948,166.34,166.33,0.06]
[1754380452296,35.65529791,166.34,166.33,0.74]
[1754380452601,104.95529791,166.34,166.33,0.74]
[1754380452804,105.09745948,166.34,166.33,0.74]
[1754380453275,98.62856226,166.34,166.33,0.74]
[1754380453481,99.08567639,166.34,166.33,0.74]
[1754380453694,73.08567639,166.34,166.33,0.74]
[1754380456129,73.08567639,166.34,166.33,0.06]
[1754380456517,79.09745948,166.34,166.33,0.06]
[1754380456920,79.77745948,166.34,166.33,0.06]
[1754380459231,83.71047876,166.34,166.33,0.06]
[1754380459605,79.09745948,166.34,166.33,0.06]